bitfinex/quotes_BTCUSD_20220211
["timestamp","ask_amount","ask_price","bid_price","bid_amount"]
[1644576645232,0.21051668,43446.0,43445.0,0.00283481]
[1644576645428,0.53418068,43446.0,43445.0,0.00283481]
[1644576645627,0.53418068,43446.0,43441.0,0.011]
[1644576645628,0.21051668,43446.0,43441.0,0.011]
[1644576645927,0.38266963,43442.0,43441.0,0.011]
[1644576646127,0.38266963,43442.0,43441.0,0.126122]
[1644576646930,0.38266963,43442.0,43441.0,0.183684]
[1644576647375,0.3,43447.0,43441.0,0.183684]
[1644576647580,0.23878962,43448.0,43444.0,0.057561]
[1644576648178,0.323664,43447.0,43444.0,0.05826963]
[1644576648380,0.23878962,43448.0,43444.0,0.00070863]
[1644576648578,0.65150329,43445.0,43444.0,0.00070863]
[1644576648978,0.97516729,43445.0,43444.0,0.00070863]
[1644576649178,0.97516729,43445.0,43441.0,0.011]
[1644576649378,0.65150329,43445.0,43442.0,0.05827264]
[1644576649980,0.65150329,43445.0,43442.0,0.11583764]
[1644576650184,0.65150329,43445.0,43442.0,0.05827364]
[1644576650381,0.3543198,43445.0,43443.0,0.057563]
[1644576651416,0.28449485,43444.0,43443.0,0.057563]
[1644576651618,0.3543198,43445.0,43443.0,0.057563]
[1644576654121,0.323664,43444.0,43442.0,0.00070864]
[1644576654322,0.27316216,43443.0,43442.0,0.00070864]
[1644576654521,0.7966285,43443.0,43442.0,0.00070864]
[1644576655169,0.7966285,43443.0,43441.0,0.011]
[1644576655374,0.61085291,43442.0,43441.0,0.011]
[1644576656069,0.81065525,43442.0,43441.0,0.011]
[1644576656470,0.61085291,43442.0,43441.0,0.011]
[1644576656669,0.81065525,43442.0,43441.0,0.011]
[1644576657068,0.61085291,43442.0,43441.0,0.011]
[1644576658074,0.323664,43442.0,43441.0,0.011]
[1644576660726,0.52346634,43442.0,43441.0,0.011]
[1644576660921,0.52346634,43442.0,43441.0,0.006]
[1644576660922,0.92346634,43442.0,43441.0,0.006]
[1644576661120,0.62346634,43442.0,43441.0,0.00581563]
[1644576661320,0.52346634,43442.0,43441.0,0.00581563]
[1644576661520,0.323664,43442.0,43441.0,0.00581563]
[1644576661720,0.1172,43444.0,43441.0,0.00581563]
[1644576661921,0.323664,43444.0,43442.0,0.057562]
[1644576662121,0.3543198,43445.0,43442.0,0.057562]
[1644576662369,0.3543198,43445.0,43442.0,0.10778415]
[1644576662771,0.323664,43444.0,43442.0,0.05778415]
[1644576662971,0.19980234,43446.0,43442.0,0.057562]
[1644576663173,0.19980234,43446.0,43443.0,0.0515]
[1644576663373,0.19980234,43446.0,43444.0,0.17268]
[1644576663569,0.19980234,43446.0,43444.0,0.22418]
[1644576663771,0.323664,43445.0,43444.0,0.0515]
[1644576665273,0.323664,43449.0,43444.0,0.0515]
[1644576665472,0.323664,43449.0,43446.0,0.057561]
[1644576665673,0.24596928,43459.0,43446.0,0.407561]
[1644576665890,0.19596928,43459.0,43448.0,0.32399456]
[1644576666141,0.72864624,43466.0,43448.0,0.32399456]
[1644576666142,0.69398685,43468.0,43456.0,1.0139631]
[1644576666332,0.42640765,43470.0,43459.0,0.057535]
[1644576666333,0.00070844,43460.0,43459.0,0.057535]
[1644576666530,0.00070844,43460.0,43459.0,0.810771]
[1644576666722,0.00070844,43460.0,43459.0,0.860771]
[1644576666921,0.00070844,43460.0,43459.0,0.960771]
[1644576667121,0.00070844,43460.0,43459.0,1.010771]
[1644576667323,0.32076928,43477.0,43470.0,0.08396937]
[1644576667524,0.19596928,43479.0,43471.0,0.0515]
[1644576667922,0.19596928,43480.0,43472.0,0.057525]
[1644576668122,0.19596928,43480.0,43473.0,0.0515]
[1644576668123,0.58659086,43479.0,43473.0,0.0515]
[1644576668328,0.1,43483.0,43478.0,0.6442]
[1644576668536,0.1,43483.0,43482.0,0.6442]
[1644576668828,0.1,43483.0,43482.0,0.7457]
[1644576669126,0.1,43483.0,43482.0,0.803199]
[1644576669525,0.1,43483.0,43482.0,0.6957]
[1644576669728,0.62346634,43483.0,43482.0,0.04036554]
[1644576671679,0.19980234,43476.0,43469.0,0.6442]
[1644576671979,0.323664,43481.0,43470.0,0.0515]
[1644576672180,0.19980234,43476.0,43471.0,0.0515]
[1644576672379,0.00070843,43475.0,43472.0,0.0515]
[1644576672580,0.00070843,43475.0,43473.0,0.0515]
[1644576672977,0.66131724,43474.0,43473.0,0.0515]
[1644576673185,0.88435072,43474.0,43463.0,0.05]
[1644576673378,1.08053463,43474.0,43462.0,0.18348606]
[1644576673627,0.88435072,43474.0,43455.0,0.20969835]
[1644576673822,0.19980234,43465.0,43455.0,0.20969835]
[1644576674020,0.35785134,43461.0,43455.0,0.20969835]
[1644576674620,0.0007085,43460.0,43454.0,0.00022215]
[1644576674821,0.20051084,43460.0,43454.0,0.00022215]
[1644576675022,0.19980234,43456.0,43454.0,0.00022215]
[1644576675221,0.41852461,43460.0,43450.0,0.00943215]
[1644576675425,0.20051084,43460.0,43450.0,0.00943215]
[1644576675621,0.35785134,43461.0,43451.0,0.057549]
[1644576676022,0.00070847,43460.0,43451.0,0.05777115]
[1644576676424,0.00070847,43460.0,43454.0,0.06336256]
[1644576676622,0.00070847,43460.0,43455.0,0.05754]
[1644576676822,0.64448693,43461.0,43453.0,0.00022215]
[1644576677023,0.64448693,43461.0,43452.0,0.00022215]
[1644576677222,0.00070849,43460.0,43451.0,0.21530315]
[1644576677469,0.00070849,43460.0,43453.0,0.115079]
[1644576677769,0.00070849,43460.0,43454.0,0.05]
[1644576677967,0.64448693,43461.0,43452.0,0.057547]
[1644576678172,0.64448693,43461.0,43452.0,0.05776915]
[1644576678369,0.32614639,43454.0,43452.0,0.05776915]
[1644576678568,0.32614639,43454.0,43452.0,0.057547]
[1644576680068,0.32614639,43454.0,43451.0,0.05022215]
[1644576680274,0.32614639,43454.0,43450.0,0.00022215]
[1644576680275,0.323664,43453.0,43450.0,0.00022215]
[1644576680469,0.323664,43453.0,43449.0,0.00022215]
[1644576680670,0.323664,43453.0,43449.0,0.00070863]
[1644576681129,0.31464913,43452.0,43449.0,0.00070863]
[1644576681324,0.323664,43453.0,43449.0,0.00070863]
[1644576681520,0.52594873,43454.0,43449.0,0.00070863]
[1644576681819,0.37798352,43447.0,43445.0,0.00022215]
[1644576682019,0.37798352,43447.0,43444.0,0.057558]
[1644576682920,0.35347151,43454.0,43444.0,0.39092817]
[1644576683320,0.19980234,43453.0,43445.0,0.057556]
[1644576683521,0.35347151,43454.0,43445.0,0.05777815]
[1644576683721,0.35347151,43454.0,43447.0,0.057554]
[1644576683926,0.72121621,43454.0,43447.0,0.057554]
[1644576684323,0.3677447,43454.0,43449.0,0.06866824]
[1644576684723,0.3677447,43454.0,43449.0,0.06889039]
[1644576684976,0.3677447,43454.0,43449.0,0.12644439]
[1644576685178,0.19980234,43456.0,43449.0,0.12644439]
[1644576685376,0.49329164,43456.0,43449.0,0.12193085]
[1644576685778,0.20051077,43460.0,43449.0,0.17193085]
[1644576686177,0.29708889,43457.0,43450.0,0.057551]
[1644576686377,0.29708889,43457.0,43450.0,0.05777315]
[1644576686779,0.31448158,43456.0,43450.0,0.05777315]
[1644576687381,0.29708889,43457.0,43450.0,0.05777315]
[1644576688384,0.28616969,43456.0,43450.0,0.05777315]
[1644576688828,0.3967,43462.0,43450.0,0.05777315]
[1644576689025,0.3967,43462.0,43454.0,0.07498143]
[1644576689229,0.00070845,43460.0,43454.0,0.07498143]
[1644576690032,0.49302083,43460.0,43454.0,0.07498143]
[1644576690226,0.49372932,43460.0,43454.0,0.07498143]
[1644576690427,0.323664,43459.0,43455.0,0.057543]
[1644576690627,0.29392698,43460.0,43452.0,0.115091]
[1644576690828,0.49372932,43460.0,43452.0,0.115091]
[1644576691028,0.29392698,43460.0,43452.0,0.115091]
[1644576691328,0.29321849,43460.0,43453.0,0.057547]
[1644576691527,0.29392697,43460.0,43453.0,0.057547]
[1644576691731,0.29392697,43460.0,43454.0,0.06500191]
[1644576691928,0.29392697,43460.0,43455.0,0.057547]
[1644576692376,0.29321849,43460.0,43455.0,0.057547]
[1644576692675,0.29392699,43460.0,43455.0,0.057547]
[1644576693278,0.323664,43459.0,43453.0,0.05]
[1644576693480,0.323664,43458.0,43453.0,0.05]
[1644576693680,0.323664,43457.0,43453.0,0.05]
[1644576693878,0.49372931,43460.0,43453.0,0.05]
[1644576694084,0.323664,43458.0,43453.0,0.05]
[1644576694482,0.49372931,43460.0,43453.0,0.05]
[1644576694680,0.323664,43458.0,43453.0,0.05]
[1644576694882,0.33728545,43454.0,43453.0,0.05]
[1644576695082,0.52346634,43453.0,43449.0,0.0002157]
[1644576695283,0.323664,43451.0,43449.0,0.0002157]
[1644576695681,0.33728545,43454.0,43449.0,0.0002157]
[1644576695682,0.323664,43450.0,43449.0,0.0002157]
[1644576695890,0.52346634,43450.0,43449.0,0.0002157]
[1644576696132,0.23512956,43447.0,43446.0,0.00022215]
[1644576696325,0.56633594,43447.0,43445.0,0.057562]
[1644576696524,0.33120638,43447.0,43445.0,0.057562]
[1644576696930,0.33120638,43447.0,43445.0,0.115121]
[1644576698326,0.33120638,43447.0,43445.0,0.056462]
[1644576699329,0.33120638,43447.0,43445.0,0.114021]
[1644576699533,0.33120638,43447.0,43445.0,0.056462]
[1644576704415,0.33120638,43447.0,43445.0,0.113024]
[1644576704818,0.65487038,43447.0,43445.0,0.055462]
[1644576705215,0.33120638,43447.0,43445.0,0.055462]
[1644576705419,0.11512336,43458.0,43449.0,0.057555]
[1644576705420,0.19980234,43458.0,43449.0,0.057555]
[1644576705622,0.19980234,43458.0,43451.0,0.12170723]
[1644576706018,0.26240198,43457.0,43451.0,0.12170723]
[1644576706217,0.31096854,43457.0,43451.0,0.12170723]
[1644576706421,0.32646417,43454.0,43451.0,0.172646]
[1644576706618,0.60452777,43453.0,43451.0,0.057551]
[1644576706820,0.26508064,43452.0,43446.0,0.05]
[1644576707018,0.26593097,43453.0,43449.0,0.00021563]
[1644576707219,0.32646417,43454.0,43449.0,0.00021563]
[1644576707473,0.32646417,43454.0,43449.0,0.11532063]
[1644576707669,0.32646417,43454.0,43450.0,0.05754897]
[1644576708269,0.00070927,43460.0,43450.0,0.05754897]
[1644576708470,0.00070927,43460.0,43451.0,0.230195]
[1644576708770,0.00070927,43460.0,43454.0,0.05755]
[1644576709169,0.35068659,43457.0,43454.0,0.05755]
[1644576709370,0.29786292,43456.0,43454.0,0.05755]
[1644576710170,0.35068659,43457.0,43454.0,0.05755]
[1644576710370,0.35068659,43457.0,43454.0,0.10755]
[1644576710569,0.35068659,43457.0,43452.0,0.057553]
[1644576711618,0.19980234,43461.0,43455.0,0.06839924]
[1644576711822,0.19980234,43461.0,43455.0,0.057547]
[1644576712020,0.0007093,43460.0,43455.0,0.057547]
[1644576712823,0.67730748,43459.0,43455.0,0.057547]
[1644576714225,0.323664,43458.0,43455.0,0.057547]
[1644576714425,0.67730748,43459.0,43455.0,0.115095]
[1644576714872,0.67730748,43459.0,43455.0,0.165095]
[1644576715870,0.33360228,43459.0,43455.0,0.165095]
[1644576716271,0.20051167,43460.0,43456.0,0.230192]
[1644576716470,0.19980234,43460.0,43456.0,0.115096]
[1644576716670,0.20051167,43460.0,43456.0,0.115096]
[1644576717071,0.20051167,43460.0,43456.0,0.057548]
[1644576717272,0.20051167,43460.0,43457.0,0.115096]
[1644576717774,0.19980234,43460.0,43457.0,0.115096]
[1644576718171,0.14544304,43458.0,43457.0,0.115096]
[1644576719722,0.14544304,43458.0,43455.0,0.165104]
[1644576720221,0.34219588,43459.0,43455.0,0.165104]
[1644576721123,0.19980234,43458.0,43455.0,0.107552]
[1644576721323,0.27268389,43457.0,43455.0,0.107552]
[1644576722979,0.27268389,43457.0,43455.0,0.165105]
[1644576723678,0.34219588,43459.0,43455.0,0.165105]
[1644576724482,0.19980234,43458.0,43455.0,0.165105]
[1644576724682,0.52346634,43458.0,43455.0,0.165105]
[1644576725584,0.26416295,43456.0,43455.0,0.165105]
[1644576726817,0.19980234,43458.0,43455.0,0.165105]
[1644576727216,0.19980234,43458.0,43456.0,0.115105]
[1644576727917,0.4504845,43458.0,43456.0,0.115105]
[1644576728120,0.4504845,43458.0,43456.0,0.23021]
[1644576728319,0.4504845,43458.0,43456.0,0.345316]
[1644576728518,0.19980234,43458.0,43456.0,0.345316]
[1644576728721,0.19618391,43462.0,43456.0,0.345316]
[1644576728917,0.24522989,43465.0,43456.0,0.345316]
[1644576728918,0.19980234,43458.0,43456.0,0.345316]
[1644576729117,0.00070926,43460.0,43456.0,0.41345073]
[1644576729318,0.00070926,43460.0,43458.0,0.057547]
[1644576729521,0.00070926,43460.0,43458.0,0.39869796]
[1644576729969,0.19618391,43465.0,43458.0,0.39869796]
[1644576730170,0.00070927,43461.0,43458.0,0.39869796]
[1644576730373,0.00070927,43461.0,43460.0,0.057542]
[1644576730968,0.24618391,43465.0,43460.0,0.057542]
[1644576731170,0.0006643,43463.0,43460.0,0.057542]
[1644576731570,0.0006643,43463.0,43462.0,0.057542]
[1644576732270,0.19980234,43465.0,43462.0,0.057542]
[1644576732471,0.00066429,43465.0,43462.0,0.057542]
[1644576732672,0.00066429,43465.0,43462.0,0.103542]
[1644576733071,0.00066429,43465.0,43462.0,0.161087]
[1644576733276,0.00066429,43465.0,43463.0,0.057537]
[1644576733473,0.39598625,43468.0,43463.0,0.057537]
[1644576733722,0.00066429,43466.0,43463.0,0.057537]
[1644576733922,0.00066429,43466.0,43463.0,0.115082]
[1644576734122,0.00066429,43466.0,43463.0,0.17261803]
[1644576734322,0.00066429,43466.0,43464.0,0.115073]
[1644576734522,0.39598625,43468.0,43464.0,0.115073]
[1644576734922,0.00066465,43467.0,43464.0,0.115073]
[1644576735322,0.00066465,43467.0,43464.0,0.17261072]
[1644576735522,0.00066465,43467.0,43465.0,0.057535]
[1644576735725,0.19980234,43468.0,43465.0,0.11507]
[1644576735928,0.19980234,43468.0,43466.0,0.2924545]
[1644576736124,0.19980234,43468.0,43465.0,0.057535]
[1644576736125,0.20046698,43468.0,43465.0,0.057535]
[1644576736523,0.20046698,43468.0,43466.0,0.115065]
[1644576736725,0.20046698,43468.0,43463.0,0.10848479]
[1644576736923,0.19980234,43468.0,43463.0,0.10848479]
[1644576737370,0.19980234,43468.0,43465.0,0.230137]
[1644576737671,0.19980234,43468.0,43466.0,0.115065]
[1644576737871,0.19980234,43468.0,43466.0,0.24559252]
[1644576738474,0.19980234,43468.0,43466.0,0.75195061]
[1644576738671,0.19980234,43468.0,43466.0,0.70595061]
[1644576738870,0.19980234,43468.0,43467.0,0.05]
[1644576739071,0.19980234,43468.0,43467.0,0.3317133]
[1644576739271,0.19980234,43468.0,43467.0,0.64501212]
[1644576739473,0.56258391,43476.0,43467.0,0.64501212]
[1644576739474,0.19618391,43476.0,43467.0,0.6996633]
[1644576739775,0.1,43483.0,43476.0,0.35589795]
[1644576739974,0.1,43483.0,43477.0,0.0516]
[1644576740174,0.1,43483.0,43478.0,0.11500356]
[1644576740473,0.1,43483.0,43481.0,0.08849766]
[1644576740677,0.19664829,43491.0,43482.0,0.38076335]
[1644576740878,0.19664829,43491.0,43488.0,0.39415378]
[1644576740879,0.00025756,43491.0,43488.0,0.39415378]
[1644576741137,0.1829653,43493.0,43489.0,0.166596]
[1644576741330,0.24522989,43496.0,43489.0,0.21659516]
[1644576741528,0.24522989,43497.0,43489.0,0.21659516]
[1644576741728,0.18962868,43498.0,43489.0,0.15909616]
[1644576741928,0.18962868,43498.0,43490.0,0.057497]
[1644576742131,0.18962868,43498.0,43489.0,0.27408916]
[1644576742132,0.53437748,43492.0,43489.0,0.02945253]
[1644576742329,0.53437748,43492.0,43490.0,0.109107]
[1644576742831,0.33457514,43492.0,43490.0,0.109107]
[1644576743029,0.19980234,43491.0,43490.0,0.109107]
[1644576743230,0.323664,43495.0,43490.0,0.109107]
[1644576743632,0.19980234,43492.0,43490.0,0.109107]
[1644576743832,0.323664,43496.0,43491.0,0.057501]
[1644576744032,0.52299616,43492.0,43491.0,0.057501]
[1644576744237,0.52299616,43492.0,43486.0,0.17252155]
[1644576744238,0.323664,43491.0,43482.0,0.115023]
[1644576744433,0.323664,43491.0,43465.0,0.460092]
[1644576744434,0.323664,43481.0,43470.0,0.00086228]
[1644576744874,0.323664,43481.0,43475.0,0.057526]
[1644576745076,0.35197847,43482.0,43478.0,0.057521]
[1644576745278,0.323664,43481.0,43478.0,0.057521]
[1644576745478,0.31280502,43484.0,43478.0,0.115043]
[1644576745676,0.31280502,43484.0,43475.0,0.33919616]
[1644576745677,0.323664,43482.0,43475.0,0.33919616]
[1644576745976,0.19933216,43483.0,43476.0,0.115036]
[1644576746178,0.323664,43482.0,43477.0,0.057523]
[1644576746575,0.323664,43482.0,43477.0,0.107523]
[1644576746775,0.323664,43482.0,43479.0,0.057522]
[1644576746976,0.59324238,43482.0,43479.0,0.057522]
[1644576747378,0.59324238,43482.0,43480.0,0.066724]
[1644576748076,0.59324238,43482.0,43480.0,0.009203]
[1644576748279,0.323664,43482.0,43480.0,0.009203]
[1644576748477,0.19933216,43483.0,43480.0,0.009203]
[1644576748731,0.00064786,43485.0,43480.0,0.066724]
[1644576748924,0.27270176,43487.0,43481.0,0.057517]
[1644576749140,0.0011483,43482.0,43481.0,0.057517]
[1644576751122,0.0011483,43482.0,43481.0,0.1150302]
[1644576751326,0.0011483,43482.0,43481.0,0.1650302]
[1644576751524,0.0011483,43482.0,43481.0,0.057517]
[1644576751925,0.3248123,43482.0,43481.0,0.057517]
[1644576752134,0.0011483,43482.0,43481.0,0.107517]
[1644576752571,0.0011483,43482.0,43481.0,0.19189418]
[1644576752772,0.0011483,43482.0,43481.0,0.24189418]
[1644576752974,0.0011483,43482.0,43481.0,0.24389418]
[1644576753371,0.0011483,43482.0,43481.0,0.68602223]
[1644576753571,0.0011483,43482.0,43481.0,0.97012107]
[1644576753771,0.0011483,43482.0,43481.0,1.07012107]
[1644576754173,0.00062933,43485.0,43482.0,0.05749775]
[1644576754373,0.00062933,43485.0,43483.0,0.166596]
[1644576754574,0.00062933,43485.0,43483.0,0.216596]
[1644576754974,0.0011483,43494.0,43483.0,0.216596]
[1644576755173,0.0011483,43494.0,43490.0,0.07203858]
[1644576755374,0.0011483,43494.0,43490.0,0.12953599]
[1644576755573,0.0011483,43494.0,43491.0,0.057497]
[1644576757628,0.0011483,43494.0,43491.0,0.107497]
[1644576757928,0.0011483,43494.0,43492.0,0.28744365]
[1644576758126,0.0011483,43494.0,43492.0,0.40242495]
[1644576758329,0.0011483,43494.0,43492.0,0.60494495]
[1644576758530,0.0011483,43494.0,43493.0,0.05]
[1644576758727,0.0011483,43494.0,43493.0,0.096]
[1644576758928,0.0011483,43494.0,43493.0,0.146]
[1644576759131,0.00067887,43495.0,43494.0,0.057483]
[1644576759876,0.00025524,43497.0,43495.0,0.3527542]
[1644576760176,0.00067886,43497.0,43496.0,0.114974]
[1644576760976,0.00116055,43498.0,43496.0,0.114974]
[1644576761177,0.00116055,43498.0,43496.0,0.2299497]
[1644576761377,0.00116055,43498.0,43497.0,0.05]
[1644576761575,0.00116055,43498.0,43497.0,0.12815677]
[1644576761781,0.00116055,43498.0,43497.0,0.23564277]
[1644576762575,0.00116055,43498.0,43497.0,0.62802978]
[1644576762775,0.00116055,43498.0,43497.0,0.57802978]
[1644576764521,0.00116055,43498.0,43497.0,0.5779436]
[1644576766121,0.00025524,43506.0,43499.0,0.05748333]
[1644576766325,0.00025524,43500.0,43499.0,0.41467699]
[1644576766524,0.00025524,43506.0,43499.0,0.41467699]
[1644576766721,0.00025524,43506.0,43498.0,0.201356]
[1644576766722,0.19933216,43503.0,43498.0,0.03454648]
[1644576766929,0.20933216,43509.0,43500.0,0.35510357]
[1644576767124,0.20933216,43509.0,43501.0,0.046]
[1644576767125,0.00025524,43505.0,43501.0,0.046]
[1644576767388,0.01,43509.0,43501.0,0.046]
[1644576767587,0.00025524,43508.0,43505.0,0.3523318]
[1644576767798,0.00025524,43510.0,43507.0,0.057468]
[1644576767991,0.00025524,43510.0,43507.0,0.38941825]
[1644576768290,0.1,43513.0,43508.0,0.3]
[1644576768291,0.00025585,43512.0,43508.0,0.3]
[1644576768487,0.1,43513.0,43508.0,0.3]
[1644576768488,0.1,43513.0,43509.0,0.33399021]
[1644576768692,0.00025585,43512.0,43509.0,0.38399021]
[1644576768891,0.1,43513.0,43512.0,0.27571113]
[1644576769088,0.10025585,43513.0,43512.0,0.33317213]
[1644576769288,0.10025585,43513.0,43512.0,0.48317213]
[1644576769289,0.1,43513.0,43512.0,0.48317213]
[1644576769690,0.1,43513.0,43512.0,0.207461]
[1644576769890,0.1,43513.0,43512.0,0.107461]
[1644576770089,0.1,43513.0,43512.0,0.057461]
[1644576772141,1.02280645,43513.0,43512.0,6.1e-05]
[1644576772341,0.323664,43512.0,43505.0,0.057488]
[1644576772539,0.69914245,43513.0,43497.0,0.057493]
[1644576772540,0.19933216,43502.0,43497.0,0.057493]
[1644576772739,0.19933216,43505.0,43497.0,0.057493]
[1644576772939,0.00025584,43507.0,43497.0,0.057493]
[1644576773140,0.28886004,43503.0,43497.0,0.057493]
[1644576773341,0.28886004,43503.0,43501.0,0.114975]
[1644576773541,0.00070911,43502.0,43501.0,0.114975]
[1644576774340,0.00025584,43504.0,43501.0,0.114975]
[1644576774542,0.33127993,43504.0,43501.0,0.114975]
[1644576774987,0.33127993,43504.0,43501.0,0.229938]
[1644576775388,0.33127993,43504.0,43502.0,0.057485]
[1644576775589,0.33057082,43504.0,43502.0,0.057485]
[1644576776689,0.00025584,43505.0,43502.0,0.11496887]
[1644576776891,0.28971298,43506.0,43502.0,0.27992987]
[1644576777192,0.00070106,43505.0,43504.0,0.114947]
[1644576777396,0.00070106,43505.0,43504.0,0.172421]
[1644576777592,0.00070106,43505.0,43504.0,0.51971751]
[1644576777990,0.00025584,43507.0,43505.0,0.11494485]
[1644576778190,0.00070105,43507.0,43505.0,0.17241785]
[1644576778389,0.00070105,43507.0,43506.0,0.057473]
[1644576779047,0.00025584,43511.0,43506.0,0.057473]
[1644576779249,0.29608618,43512.0,43508.0,0.172422]
[1644576779547,0.0006715,43509.0,43508.0,0.222422]
[1644576779747,0.0006715,43509.0,43508.0,0.172422]
[1644576780348,0.19933216,43510.0,43508.0,0.172422]
[1644576780949,0.19933216,43510.0,43508.0,0.114948]
[1644576784392,0.00067581,43511.0,43508.0,0.19205771]
[1644576784393,0.00093165,43511.0,43508.0,0.19205771]
[1644576784594,0.00067581,43511.0,43508.0,0.24953171]
[1644576784793,0.00067581,43511.0,43508.0,0.24913671]
[1644576785198,0.19933216,43510.0,43509.0,0.057473]
[1644576785394,0.00025584,43512.0,43508.0,0.172027]
[1644576785395,0.00067581,43512.0,43508.0,0.172027]
[1644576785597,0.00067581,43512.0,43508.0,0.2295]
[1644576785797,0.00067581,43512.0,43509.0,0.11494301]
[1644576785995,0.19923957,43511.0,43509.0,0.11494301]
[1644576786441,0.19923957,43511.0,43509.0,0.17241501]
[1644576786640,0.19923957,43511.0,43509.0,0.22988701]
[1644576787040,0.00025584,43512.0,43509.0,0.22988701]
[1644576787241,0.10067517,43513.0,43509.0,0.22988701]
[1644576787441,0.10025584,43513.0,43509.0,0.22988701]
[1644576787641,0.10067517,43513.0,43509.0,0.22988701]
[1644576788643,0.1,43513.0,43509.0,0.53278522]
[1644576788843,0.10067517,43513.0,43510.0,0.29155405]
[1644576789045,0.10067517,43513.0,43511.0,0.11493389]
[1644576789246,0.10067517,43513.0,43512.0,0.11493]
[1644576789444,0.10067517,43513.0,43512.0,0.16493]
[1644576789892,0.1,43513.0,43512.0,0.16493]
[1644576791100,0.1,43513.0,43512.0,0.4639026]
[1644576791399,0.00025584,43515.0,43513.0,0.55745773]
[1644576791400,0.00067525,43515.0,43513.0,0.55745773]
[1644576791601,0.01,43519.0,43515.0,0.31896218]
[1644576791799,0.01,43519.0,43515.0,0.53232105]
[1644576792199,0.001,43525.0,43517.0,0.3]
[1644576792403,0.001,43525.0,43524.0,0.38023427]
[1644576792900,0.001,43525.0,43524.0,0.43767941]
[1644576793101,0.001,43525.0,43524.0,0.52308734]
[1644576793402,0.001,43525.0,43524.0,0.78053534]
[1644576794140,0.001,43525.0,43524.0,1.03941648]
[1644576794541,0.001,43525.0,43524.0,0.69512741]
[1644576794745,0.001,43525.0,43524.0,0.16489314]
[1644576794941,0.001,43525.0,43524.0,0.107448]
[1644576795241,0.001,43525.0,43524.0,0.1649047]
[1644576796540,0.001,43525.0,43524.0,0.51402942]
[1644576796940,0.001,43525.0,43524.0,0.05]
[1644576797141,0.001,43525.0,43523.0,0.22002311]
[1644576797385,0.001,43525.0,43524.0,0.1149047]
[1644576798386,0.001,43525.0,43524.0,0.1649047]
[1644576806392,0.001,43525.0,43524.0,0.46221326]
[1644576806591,0.001,43525.0,43524.0,0.74579483]
[1644576807393,0.00051638,43525.0,43524.0,0.74579483]
[1644576807594,0.00023272,43525.0,43524.0,0.74579483]
[1644576808197,0.001,43526.0,43524.0,0.74579483]
[1644576808395,0.001,43526.0,43525.0,0.30901772]
[1644576808840,0.001,43526.0,43525.0,0.35901772]
[1644576809440,0.001,43526.0,43525.0,0.40501772]
[1644576811040,0.001,43526.0,43525.0,0.90501772]
[1644576812393,0.001,43526.0,43525.0,1.00501772]
[1644576812594,0.001,43526.0,43525.0,1.05501772]
[1644576812799,0.001,43526.0,43525.0,0.85901772]
[1644576812995,0.001,43526.0,43525.0,0.55]
[1644576813295,0.001,43526.0,43525.0,0.34352122]
[1644576813898,0.000256,43528.0,43525.0,0.34352122]
[1644576814098,0.00283672,43534.0,43528.0,0.0574382]
[1644576814297,0.00283672,43534.0,43529.0,0.0515]
[1644576814496,0.00283672,43534.0,43529.0,0.6952]
[1644576814894,0.00283672,43534.0,43529.0,0.7952]
[1644576815095,0.001,43536.0,43529.0,0.7952]
[1644576815296,0.003,43538.0,43530.0,0.114864]
[1644576815497,0.00070926,43534.0,43531.0,0.0515]
[1644576816341,0.003,43538.0,43531.0,0.0515]
[1644576816546,0.003,43538.0,43536.0,0.06904128]
[1644576816743,0.003,43538.0,43537.0,0.0515]
[1644576820597,0.9,43537.0,43535.0,0.07924516]
[1644576820799,0.9,43537.0,43529.0,0.344566]
[1644576820800,0.23206208,43534.0,43521.0,0.229754]
[1644576820997,0.23206208,43534.0,43517.0,0.31095476]
[1644576820998,0.26598398,43526.0,43517.0,0.31095476]
[1644576821296,0.3515,43533.0,43517.0,0.66985306]
[1644576821297,0.19923957,43519.0,43517.0,0.66985306]
[1644576821497,0.0515,43525.0,43520.0,0.114901]
[1644576821699,0.63167363,43533.0,43520.0,0.114901]
[1644576821700,0.25144884,43530.0,43520.0,0.114901]
[1644576821896,0.25144884,43530.0,43529.0,0.07725938]
[1644576822495,0.24383957,43530.0,43529.0,0.07725938]
[1644576822695,0.00070927,43532.0,43529.0,0.07725938]
[1644576822896,0.00070927,43532.0,43529.0,0.12725938]
[1644576823495,0.19233957,43534.0,43529.0,0.12725938]
[1644576823745,0.00069639,43533.0,43530.0,0.34758839]
[1644576823945,0.00069639,43533.0,43532.0,0.3020508]
[1644576824149,0.19533957,43538.0,43535.0,0.00930361]
[1644576824351,0.19533957,43538.0,43536.0,0.08868313]
[1644576824746,0.19533957,43538.0,43536.0,0.13868313]
[1644576824948,0.19533957,43538.0,43536.0,0.19612113]
[1644576825447,0.19533957,43538.0,43536.0,0.24762113]
[1644576826449,0.18603596,43538.0,43536.0,0.24762113]
[1644576826649,0.001,43538.0,43537.0,0.26685017]
[1644576826853,0.18603596,43538.0,43537.0,0.08781119]
[1644576827050,0.001,43538.0,43537.0,0.08781119]
[1644576827791,0.001,43538.0,43537.0,0.13931119]
[1644576827993,0.001,43538.0,43537.0,0.49584519]
[1644576828191,0.001,43538.0,43537.0,1.18954519]
[1644576828393,0.01,43539.0,43537.0,1.34696219]
[1644576828592,0.01,43539.0,43538.0,0.95644324]
[1644576828793,0.01,43539.0,43538.0,1.10794324]
[1644576829595,0.001,43542.0,43538.0,1.16536024]
[1644576829797,0.001,43542.0,43539.0,0.172239]
[1644576829798,0.00070922,43541.0,43539.0,0.172239]
[1644576829994,0.00070922,43541.0,43540.0,0.36309525]
[1644576830296,0.001,43542.0,43540.0,0.51309525]
[1644576830595,0.001,43542.0,43541.0,0.29915554]
[1644576830795,0.001,43542.0,43541.0,0.35065554]
[1644576830994,0.001,43542.0,43541.0,0.0515]
[1644576832544,0.09997435,43543.0,43541.0,0.0515]
[1644576832745,0.09997435,43543.0,43542.0,0.057424]
[1644576832947,0.09997435,43543.0,43542.0,0.103424]
[1644576833144,0.09997435,43543.0,43542.0,0.153424]
[1644576841955,0.09997435,43543.0,43542.0,0.103424]
[1644576842159,0.18503596,43541.0,43540.0,0.057441]
[1644576842407,0.18503596,43541.0,43535.0,0.0007095]